Workbook

Sheet Vista Principal (hidden)
C2: Calculadora de Seguros PP - Scotiabank
B7: 1) Establecer los datos del préstamos
B9: Producto | C9: Persona Juridica
B10: Tipo de Seguro | C10: Seguro de Desgravamen
B11: Tarifa | C11: TARIFA TITULAR
B12: Monto inicial | C12: 100000
B13: Seguro Desempleo
B14: Monto adicional desempleo | C14: =C13*C12 -> 0
B15: Prima de Seguro de Desgravamen/Vida | C15: =IF(C10="Seguro de vida",'Proceso Prima de Seguro'!C13, IF(AND(C10="Sin Seguro (Solo LD Garantía Liquida)",C9="Préstamos Personales (LD Garantía Liquida)"),0%, 'Proceso Prima de Seguro'!G16)) -> 0.01235817572
B16: Monto adicional del Seguro | C16: =+C15*C12 -> 1235.817572
B17: MAF final (MAF inicial+seguro) | C17: =C12+C14+C16 -> 101235.8176
B18: Empleado | C18: =IF(C9="Préstamos Personales (LD Y PA) (Empleados)","SI","NO") -> NO
B19: Moneda | C19: Soles
B20: Plazo Remanente | C20: 36
B21: Fecha de Desembolso | C21: =TODAY() -> 2022-08-12
B22: Fecha de 1er Pago | C22: 2022-09-02
B23: Cuota Julio | C23: 1
B24: Cuota Diciembre | C24: 1
B25: TEA | C25: 0.2
B26: TEA TOTAL | C26: =+C25 -> 0.2
B27: Monto del Bien | C27: 0
B28: Seguro del Bien | C28: 0
B29: Portes
B30: Cuota | C30: =(C17+(C28*C27+C29)*P34)/O34 -> 3674.651757
B31: 2) Calcular TCEA presionando el botón
B32: TCEA | C32: 0.245501061
U33: =C17-U34-C14-C16 -> 3844.38
O34: =SUM(O36:O395) -> 27.54977186 | P34: =SUM(P36:P395) -> 27.54977186 | U34: =SUM(U36:U395) -> 96155.62
B35: N° Cuota | C35: Fecha de pago | D35: Día | E35: Fecha de pago | F35: Días | G35: Dias Acumulados | H35: Saldo Inicial | I35: Amortización | J35: Interés | K35: Seguro del Bien | L35: Portes | M35: Cuota Constante | N35: Saldo Final | O35: Factor Cronograma | P35: Factor Cronograma 2 | R35: Vector i,1 Cuota | S35: Vector i,2 Días Acum | T35: Vector i,3 Factor | U35: Vector i,4 Calculo VA
B36: 1 | C36: =C22 -> 2022-09-02 | D36: =IF(B36<=$C$20,WEEKDAY(C36,2),"") -> 5 | E36: =IF(D36=7,C36+1,C36) -> 2022-09-02 | F36: =E36-C21 -> 21 | G36: =F36 -> 21 | H36: =C17 -> 101235.8176 | I36: =IF(B36>C$20,"",M36-L36-K36-J36) -> 2592.220041 | J36: =IF(B36>C$20,"",((1+C$25)^(F36/360)-1)*H36) -> 1082.431716 | K36: =IF(B36>C$20,"",C$27*C$28) -> 0 | L36: =IF(B36>C$20,"",C$29) -> 0 | M36: =IF(B36>C$20,"",IF(B36=C$20,H36+J36+K36+L36,IF(AND(C$23=2,MONTH(E36)=7),2*C$30,IF(AND(C$24=2,MONTH(E36)=12),2*C$30,C$30)))) -> 3674.651757 | N36: =IF(B36>C$20,"",H36-I36) -> 98643.59753 | O36: =IFERROR(IF(AND(MONTH(E36)=7,C$23=2),2/(1+C$26)^(G36/360),IF(AND(MONTH(E36)=12,C$24=2),2/(1+C$26)^(G36/360),1/(1+C$26)^(G36/360))),"") -> 0.989420932 | P36: =IFERROR(1/(1+C$26)^(G36/360),"") -> 0.989420932 | R36: =IFERROR(I36+J36+K36+L36,"") -> 3674.651757 | S36: =G36 -> 21 | T36: =IFERROR((1+C$32)^(S36/360),"") -> 1.012888731 | U36: =IFERROR(ROUND(R36/T36,2),"") -> 3627.89
B37: 2 | C37: =IF(B37>$C$20,"",EDATE(C36,1)) -> 2022-10-02 | D37: 7 | E37: =IF(D37=7,C37+1,C37) -> 2022-10-03 | F37: =IF(B37>C$20,"",E37-E36) -> 31 | G37: =IFERROR(F37+G36,"") -> 52 | H37: =IF(B37>C$20,"",N36) -> 98643.59753 | I37: =IF(B37>C$20,"",M37-L37-K37-J37) -> 2113.734906 | J37: 1560.916851 | K37: 0 | L37: 0 | M37: =IF(B37>C$20,"",IF(B37=C$20,H37+J37+K37+L37,IF(AND(C$23=2,MONTH(E37)=7),2*C$30,IF(AND(C$24=2,MONTH(E37)=12),2*C$30,C$30)))) -> 3674.651757 | N37: 96529.86262 | O37: 0.9740084148 | P37: 0.9740084148 | R37: =IFERROR(I37+J37+K37+L37,"") -> 3674.651757 | S37: 52 | T37: 1.032219183 | U37: 3559.95
B38: 3 | C38: 2022-11-02 | D38: 3 | E38: 2022-11-02 | F38: 30 | G38: 82 | H38: 96529.86262 | I38: 2196.830673 | J38: 1477.821084 | K38: 0 | L38: 0 | M38: 3674.651757 | N38: 94333.03195 | O38: 0.9593217074 | P38: 0.9593217074 | R38: 3674.651757 | S38: 82 | T38: 1.051277253 | U38: 3495.42
B39: 4 | C39: 2022-12-02 | D39: 5 | E39: 2022-12-02 | F39: 30 | G39: 112 | H39: 94333.03195 | I39: 2230.462987 | J39: 1444.18877 | K39: 0 | L39: 0 | M39: 3674.651757 | N39: 92102.56896 | O39: 0.9448564554 | P39: 0.9448564554 | R39: 3674.651757 | S39: 112 | T39: 1.070687197 | U39: 3432.05
B40: 5 | C40: 2023-01-02 | D40: 1 | E40: 2023-01-02 | F40: 31 | G40: 143 | H40: 92102.56896 | I40: 2217.238854 | J40: 1457.412904 | K40: 0 | L40: 0 | M40: 3674.651757 | N40: 89885.33011 | O40: 0.9301381328 | P40: 0.9301381328 | R40: 3674.651757 | S40: 143 | T40: 1.091120703 | U40: 3367.78
B41: 6 | C41: 2023-02-02 | D41: 4 | E41: 2023-02-02 | F41: 31 | G41: 174 | H41: 89885.33011 | I41: 2252.324004 | J41: 1422.327753 | K41: 0 | L41: 0 | M41: 3674.651757 | N41: 87633.00611 | O41: 0.9156490822 | P41: 0.9156490822 | R41: 3674.651757 | S41: 174 | T41: 1.111944171 | U41: 3304.71
B42: 7 | C42: 2023-03-02 | D42: 4 | E42: 2023-03-02 | F42: 28 | G42: 202 | H42: 87633.00611 | I42: 2423.113383 | J42: 1251.538374 | K42: 0 | L42: 0 | M42: 3674.651757 | N42: 85209.89272 | O42: 0.9027562899 | P42: 0.9027562899 | R42: 3674.651757 | S42: 202 | T42: 1.131093834 | U42: 3248.76
B43: 8 | C43: 2023-04-02 | D43: 7 | E43: 2023-04-03 | F43: 32 | G43: 234 | H43: 85209.89272 | I43: 2282.458789 | J43: 1392.192968 | K43: 0 | L43: 0 | M43: 3674.651757 | N43: 82927.43393 | O43: 0.8882438108 | P43: 0.8882438108 | R43: 3674.651757 | S43: 234 | T43: 1.153383319 | U43: 3185.98
B44: 9 | C44: 2023-05-02 | D44: 2 | E44: 2023-05-02 | F44: 29 | G44: 263 | H44: 82927.43393 | I44: 2447.707329 | J44: 1226.944428 | K44: 0 | L44: 0 | M44: 3674.651757 | N44: 80479.7266 | O44: 0.8752934948 | P44: 0.8752934948 | R44: 3674.651757 | S44: 263 | T44: 1.173962335 | U44: 3130.13
B45: 10 | C45: 2023-06-02 | D45: 5 | E45: 2023-06-02 | F45: 31 | G45: 294 | H45: 80479.7266 | I45: 2401.156421 | J45: 1273.495336 | K45: 0 | L45: 0 | M45: 3674.651757 | N45: 78078.57018 | O45: 0.8616587761 | P45: 0.8616587761 | R45: 3674.651757 | S45: 294 | T45: 1.196366792 | U45: 3071.51
B46: 11 | C46: 2023-07-02 | D46: 7 | E46: 2023-07-03 | F46: 31 | G46: 325 | H46: 78078.57018 | I46: 2439.151847 | J46: 1235.49991 | K46: 0 | L46: 0 | M46: 3674.651757 | N46: 75639.41834 | O46: 0.8482364497 | P46: 0.8482364497 | R46: 3674.651757 | S46: 325 | T46: 1.219198828 | U46: 3013.99
B47: 12 | C47: 2023-08-02 | D47: 3 | E47: 2023-08-02 | F47: 30 | G47: 355 | H47: 75639.41834 | I47: 2516.652313 | J47: 1157.999444 | K47: 0 | L47: 0 | M47: 3674.651757 | N47: 73122.76602 | O47: 0.8354462106 | P47: 0.8354462106 | R47: 3674.651757 | S47: 355 | T47: 1.241709141 | U47: 2959.35
B48: 13 | C48: 2023-09-02 | D48: 6 | E48: 2023-09-02 | F48: 31 | G48: 386 | H48: 73122.76602 | I48: 2517.571516 | J48: 1157.080242 | K48: 0 | L48: 0 | M48: 3674.651757 | N48: 70605.19451 | O48: 0.8224322054 | P48: 0.8224322054 | R48: 3674.651757 | S48: 386 | T48: 1.265406511 | U48: 2903.93
B49: 14 | C49: 2023-10-02 | D49: 1 | E49: 2023-10-02 | F49: 30 | G49: 416 | H49: 70605.19451 | I49: 2593.723615 | J49: 1080.928142 | K49: 0 | L49: 0 | M49: 3674.651757 | N49: 68011.47089 | O49: 0.8100310588 | P49: 0.8100310588 | R49: 3674.651757 | S49: 416 | T49: 1.288769966 | U49: 2851.29
B50: 15 | C50: 2023-11-02 | D50: 4 | E50: 2023-11-02 | F50: 31 | G50: 447 | H50: 68011.47089 | I50: 2598.451643 | J50: 1076.200115 | K50: 0 | L50: 0 | M50: 3674.651757 | N50: 65413.01925 | O50: 0.7974129533 | P50: 0.7974129533 | R50: 3674.651757 | S50: 447 | T50: 1.313365467 | U50: 2797.89
B51: 16 | C51: 2023-12-02 | D51: 6 | E51: 2023-12-02 | F51: 30 | G51: 477 | H51: 65413.01925 | I51: 2673.213069 | J51: 1001.438689 | K51: 0 | L51: 0 | M51: 3674.651757 | N51: 62739.80618 | O51: 0.7853890627 | P51: 0.7853890627 | R51: 3674.651757 | S51: 477 | T51: 1.337614398 | U51: 2747.17
B52: 17 | C52: 2024-01-02 | D52: 2 | E52: 2024-01-02 | F52: 31 | G52: 508 | H52: 62739.80618 | I52: 2681.869426 | J52: 992.7823309 | K52: 0 | L52: 0 | M52: 3674.651757 | N52: 60057.93676 | O52: 0.7731548132 | P52: 0.7731548132 | R52: 3674.651757 | S52: 508 | T52: 1.36314207 | U52: 2695.72
B53: 18 | C53: 2024-02-02 | D53: 5 | E53: 2024-02-02 | F53: 31 | G53: 539 | H53: 60057.93676 | I53: 2724.3068 | J53: 950.3449575 | K53: 0 | L53: 0 | M53: 3674.651757 | N53: 57333.62996 | O53: 0.7611111405 | P53: 0.7611111405 | R53: 3674.651757 | S53: 539 | T53: 1.389156924 | U53: 2645.24
B54: 19 | C54: 2024-03-02 | D54: 6 | E54: 2024-03-02 | F54: 29 | G54: 568 | H54: 57333.62996 | I54: 2826.377857 | J54: 848.2739001 | K54: 0 | L54: 0 | M54: 3674.651757 | N54: 54507.2521 | O54: 0.7500143789 | P54: 0.7500143789 | R54: 3674.651757 | S54: 568 | T54: 1.413942684 | U54: 2598.87
B55: 20 | C55: 2024-04-02 | D55: 2 | E55: 2024-04-02 | F55: 31 | G55: 599 | H55: 54507.2521 | I55: 2812.13974 | J55: 862.5120172 | K55: 0 | L55: 0 | M55: 3674.651757 | N55: 51695.11236 | O55: 0.738331172 | P55: 0.738331172 | R55: 3674.651757 | S55: 599 | T55: 1.440927041 | U55: 2550.2
B56: 21 | C56: 2024-05-02 | D56: 4 | E56: 2024-05-02 | F56: 30 | G56: 629 | H56: 51695.11236 | I56: 2883.226959 | J56: 791.4247976 | K56: 0 | L56: 0 | M56: 3674.651757 | N56: 48811.8854 | O56: 0.7271981533 | P56: 0.7271981533 | R56: 3674.651757 | S56: 629 | T56: 1.467531167 | U56: 2503.97
B57: 22 | C57: 2024-06-02 | D57: 7 | E57: 2024-06-03 | F57: 32 | G57: 661 | H57: 48811.8854 | I57: 2877.143845 | J57: 797.5079118 | K57: 0 | L57: 0 | M57: 3674.651757 | N57: 45934.74155 | O57: 0.7155079019 | P57: 0.7155079019 | R57: 3674.651757 | S57: 661 | T57: 1.496450531 | U57: 2455.58
B58: 23 | C58: 2024-07-02 | D58: 2 | E58: 2024-07-02 | F58: 29 | G58: 690 | H58: 45934.74155 | I58: 2995.028953 | J58: 679.6228042 | K58: 0 | L58: 0 | M58: 3674.651757 | N58: 42939.7126 | O58: 0.7050760212 | P58: 0.7050760212 | R58: 3674.651757 | S58: 690 | T58: 1.523150656 | U58: 2412.53
B59: 24 | C59: 2024-08-02 | D59: 5 | E59: 2024-08-02 | F59: 31 | G59: 721 | H59: 42939.7126 | I59: 2995.182206 | J59: 679.4695514 | K59: 0 | L59: 0 | M59: 3674.651757 | N59: 39944.5304 | O59: 0.694092833 | P59: 0.694092833 | R59: 3674.651757 | S59: 721 | T59: 1.55221919 | U59: 2367.35
B60: 25 | C60: 2024-09-02 | D60: 1 | E60: 2024-09-02 | F60: 31 | G60: 752 | H60: 39944.5304 | I60: 3042.577379 | J60: 632.0743784 | K60: 0 | L60: 0 | M60: 3674.651757 | N60: 36901.95302 | O60: 0.6832807333 | P60: 0.6832807333 | R60: 3674.651757 | S60: 752 | T60: 1.581842483 | U60: 2323.02
B61: 26 | C61: 2024-10-02 | D61: 3 | E61: 2024-10-02 | F61: 30 | G61: 782 | H61: 36901.95302 | I61: 3109.702396 | J61: 564.9493611 | K61: 0 | L61: 0 | M61: 3674.651757 | N61: 33792.25062 | O61: 0.6729777995 | P61: 0.6729777995 | R61: 3674.651757 | S61: 782 | T61: 1.611048359 | U61: 2280.91
B62: 27 | C62: 2024-11-02 | D62: 6 | E62: 2024-11-02 | F62: 31 | G62: 813 | H62: 33792.25062 | I62: 3139.929842 | J62: 534.7219155 | K62: 0 | L62: 0 | M62: 3674.651757 | N62: 30652.32078 | O62: 0.6624946152 | P62: 0.6624946152 | R62: 3674.651757 | S62: 813 | T62: 1.641794375 | U62: 2238.19
B63: 28 | C63: 2024-12-02 | D63: 1 | E63: 2024-12-02 | F63: 30 | G63: 843 | H63: 30652.32078 | I63: 3205.380956 | J63: 469.2708007 | K63: 0 | L63: 0 | M63: 3674.651757 | N63: 27446.93982 | O63: 0.6525051075 | P63: 0.6525051075 | R63: 3674.651757 | S63: 843 | T63: 1.672107155 | U63: 2197.62
B64: 29 | C64: 2025-01-02 | D64: 4 | E64: 2025-01-02 | F64: 31 | G64: 874 | H64: 27446.93982 | I64: 3240.336789 | J64: 434.3149677 | K64: 0 | L64: 0 | M64: 3674.651757 | N64: 24206.60303 | O64: 0.6423408328 | P64: 0.6423408328 | R64: 3674.651757 | S64: 874 | T64: 1.704018446 | U64: 2156.46
B65: 30 | C65: 2025-02-02 | D65: 7 | E65: 2025-02-03 | F65: 32 | G65: 906 | H65: 24206.60303 | I65: 3279.154692 | J65: 395.4970655 | K65: 0 | L65: 0 | M65: 3674.651757 | N65: 20927.44834 | O65: 0.6320147259 | P65: 0.6320147259 | R65: 3674.651757 | S65: 906 | T65: 1.73759806 | U65: 2114.79
B66: 31 | C66: 2025-03-02 | D66: 7 | E66: 2025-03-03 | F66: 28 | G66: 934 | H66: 20927.44834 | I66: 3375.774589 | J66: 298.8771678 | K66: 0 | L66: 0 | M66: 3674.651757 | N66: 17551.67375 | O66: 0.6231156458 | P66: 0.6231156458 | R66: 3674.651757 | S66: 934 | T66: 1.767522599 | U66: 2078.98
B67: 32 | C67: 2025-04-02 | D67: 3 | E67: 2025-04-02 | F67: 30 | G67: 964 | H67: 17551.67375 | I67: 3405.944926 | J67: 268.7068315 | K67: 0 | L67: 0 | M67: 3674.651757 | N67: 14145.72883 | O67: 0.6137199188 | P67: 0.6137199188 | R67: 3674.651757 | S67: 964 | T67: 1.800156725 | U67: 2041.3
B68: 33 | C68: 2025-05-02 | D68: 5 | E68: 2025-05-02 | F68: 30 | G68: 994 | H68: 14145.72883 | I68: 3458.088139 | J68: 216.5636182 | K68: 0 | L68: 0 | M68: 3674.651757 | N68: 10687.64069 | O68: 0.6044658665 | P68: 0.6044658665 | R68: 3674.651757 | S68: 994 | T68: 1.83339338 | U68: 2004.29
B69: 34 | C69: 2025-06-02 | D69: 1 | E69: 2025-06-02 | F69: 31 | G69: 1025 | H69: 10687.64069 | I69: 3505.532637 | J69: 169.1191204 | K69: 0 | L69: 0 | M69: 3674.651757 | N69: 7182.108051 | O69: 0.5950499139 | P69: 0.5950499139 | R69: 3674.651757 | S69: 1025 | T69: 1.868382735 | U69: 1966.76
B70: 35 | C70: 2025-07-02 | D70: 3 | E70: 2025-07-02 | F70: 30 | G70: 1055 | H70: 7182.108051 | I70: 3564.697486 | J70: 109.9542713 | K70: 0 | L70: 0 | M70: 3674.651757 | N70: 3617.410565 | O70: 0.5860773795 | P70: 0.5860773795 | R70: 3674.651757 | S70: 1055 | T70: 1.902879061 | U70: 1931.1
B71: 36 | C71: 2025-08-02 | D71: 6 | E71: 2025-08-02 | F71: 31 | G71: 1086 | H71: 3617.410565 | I71: 3617.410565 | J71: 57.24119201 | K71: 0 | L71: 0 | M71: 3674.651757 | N71: 0 | O71: 0.5769478701 | P71: 0.5769478701 | R71: 3674.651757 | S71: 1086 | T71: 1.939194514 | U71: 1894.94
B72: 37
B73: 38
B74: 39
B75: 40
B76: 41
B77: 42
B78: 43
B79: 44
B80: 45
B81: 46
B82: 47
B83: 48
B84: 49
B85: 50
B86: 51
B87: 52
B88: 53
B89: 54
B90: 55
B91: 56
B92: 57
B93: 58
B94: 59
B95: 60
B96: 61
B97: 62
B98: 63
B99: 64
B100: 65 | D100: =IF(B100<=$C$20,WEEKDAY(C100,2),"") ->  | J100: =IF(B100>C$20,"",((1+C$25)^(F100/360)-1)*H100) ->  | K100: =IF(B100>C$20,"",C$27*C$28) ->  | L100: =IF(B100>C$20,"",C$29) ->  | N100: =IF(B100>C$20,"",H100-I100) ->  | O100: =IFERROR(IF(AND(MONTH(E100)=7,C$23=2),2/(1+C$26)^(G100/360),IF(AND(MONTH(E100)=12,C$24=2),2/(1+C$26)^(G100/360),1/(1+C$26)^(G100/360))),"") ->  | P100: =IFERROR(1/(1+C$26)^(G100/360),"") ->  | S100: =G100 ->  | T100: =IFERROR((1+C$32)^(S100/360),"") ->  | U100: =IFERROR(ROUND(R100/T100,2),"") -> 
B101: 66 | C101: =IF(B101>$C$20,"",EDATE(C100,1)) ->  | E101: =IF(D101=7,C101+1,C101) ->  | F101: =IF(B101>C$20,"",E101-E100) ->  | G101: =IFERROR(F101+G100,"") ->  | H101: =IF(B101>C$20,"",N100) ->  | I101: =IF(B101>C$20,"",M101-L101-K101-J101) ->  | M101: =IF(B101>C$20,"",IF(B101=C$20,H101+J101+K101+L101,IF(AND(C$23=2,MONTH(E101)=7),2*C$30,IF(AND(C$24=2,MONTH(E101)=12),2*C$30,C$30)))) ->  | R101: =IFERROR(I101+J101+K101+L101,"") -> 
B102: 67
B103: 68
B104: 69
B105: 70
B106: 71
B107: 72
B108: 73
B109: 74
B110: 75
B111: 76
B112: 77
B113: 78
B114: 79
B115: 80
B116: 81
B117: 82
B118: 83
B119: 84
B120: 85
B121: 86
B122: 87
B123: 88
B124: 89
B125: 90
B126: 91
B127: 92
B128: 93
B129: 94
B130: 95
B131: 96
B132: 97
B133: 98
B134: 99
B135: 100
B136: 101
B137: 102
B138: 103
B139: 104
B140: 105
B141: 106
B142: 107
B143: 108
B144: 109
B145: 110
B146: 111
B147: 112
B148: 113
B149: 114
B150: 115
B151: 116
B152: 117
B153: 118
B154: 119
B155: 120
B156: 121
B157: 122
B158: 123
B159: 124
B160: 125
B161: 126
B162: 127
B163: 128
B164: 129 | D164: =IF(B164<=$C$20,WEEKDAY(C164,2),"") ->  | J164: =IF(B164>C$20,"",((1+C$25)^(F164/360)-1)*H164) ->  | K164: =IF(B164>C$20,"",C$27*C$28) ->  | L164: =IF(B164>C$20,"",C$29) ->  | N164: =IF(B164>C$20,"",H164-I164) ->  | O164: =IFERROR(IF(AND(MONTH(E164)=7,C$23=2),2/(1+C$26)^(G164/360),IF(AND(MONTH(E164)=12,C$24=2),2/(1+C$26)^(G164/360),1/(1+C$26)^(G164/360))),"") ->  | P164: =IFERROR(1/(1+C$26)^(G164/360),"") ->  | S164: =G164 ->  | T164: =IFERROR((1+C$32)^(S164/360),"") ->  | U164: =IFERROR(ROUND(R164/T164,2),"") -> 
B165: 130 | C165: =IF(B165>$C$20,"",EDATE(C164,1)) ->  | E165: =IF(D165=7,C165+1,C165) ->  | F165: =IF(B165>C$20,"",E165-E164) ->  | G165: =IFERROR(F165+G164,"") ->  | H165: =IF(B165>C$20,"",N164) ->  | I165: =IF(B165>C$20,"",M165-L165-K165-J165) ->  | M165: =IF(B165>C$20,"",IF(B165=C$20,H165+J165+K165+L165,IF(AND(C$23=2,MONTH(E165)=7),2*C$30,IF(AND(C$24=2,MONTH(E165)=12),2*C$30,C$30)))) ->  | R165: =IFERROR(I165+J165+K165+L165,"") -> 
B166: 131
B167: 132
B168: 133
B169: 134
B170: 135
B171: 136
B172: 137
B173: 138
B174: 139
B175: 140
B176: 141
B177: 142
B178: 143
B179: 144
B180: 145
B181: 146
B182: 147
B183: 148
B184: 149
B185: 150
B186: 151
B187: 152
B188: 153
B189: 154
B190: 155
B191: 156
B192: 157
B193: 158
B194: 159
B195: 160
B196: 161
B197: 162
B198: 163
B199: 164
B200: 165
B201: 166
B202: 167
B203: 168
B204: 169
B205: 170
B206: 171
... 189 more rows

Sheet Proceso Prima de Seguro
C2: Proceso de Cálculo de la Prima de Seguros
B7: 1) Datos esenciales del préstamo | F7: 3) Calculo del valor presente del Seguro
B9: Producto | C9: ='Vista Principal'!C9 -> Persona Juridica | F9: Suma de Prima Mensual | G9: =SUM(K36:K395) -> 494.3270287
B10: Tipo de Seguro | C10: ='Vista Principal'!C10 -> Seguro de Desgravamen | F10: VPN - Valor Presente | G10: =NPV(C16,K36:K395) -> 494.3270287
B11: Tarifa | C11: ='Vista Principal'!C11 -> TARIFA TITULAR
B12: Monto inicial | C12: 40000 | D12: Indicar Importe | F12: 4) Calculo del Monto Adicional del Seguro y MAF
B13: =C10 -> Seguro de Desgravamen | C13: =+TarifarioBD!D8 -> 0.000909
B14: Monto adicional Seguro de Desgravamen/ Vida | F14: Monto inicial | G14: =C12 -> 40000
B15: MAF Inicial | C15: =C12+C14 -> 40000 | F15: Monto adicional de Desgravamen / Vida | G15: =G10 -> 494.3270287
B16: Costo Capital | C16: =INDEX(_xlfn._xlws.FILTER(Tabla2[],Tabla2[TARIFA]=C11),0,2) -> 0 | F16: Prima de Seguro de Desgravamen / Vida | G16: =G15/G14 -> 0.01235817572
B17: Moneda | C17: ='Vista Principal'!C19 -> Soles | F17: MAF Inicial | G17: =G14+G15 -> 40494.32703
B18: Plazo Remanente Meses | C18: 24 | D18: Indicar Plazo
B19: Fecha de Desembolso | C19: 2022-07-19 | D19: Indicar Fecha desembolso
B20: Fecha de 1er Pago | C20: 2022-08-19 | D20: Indicar Fecha primer pago
B21: Cuota Julio | C21: ='Vista Principal'!C23 -> 1
B22: Cuota Diciembre | C22: ='Vista Principal'!C24 -> 1
B23: TEA | C23: 0.2262 | D23: Indicar tasa
B24: TEA TOTAL | C24: =(1+(((1+C23)^(30/360)-1)+C13))^12-1 -> 0.2394148462
B25: Monto del Bien | C25: 0
B26: Seguro del Bien | C26: 0
B27: Portes | C27: 0
B28: Cuota | C28: =(C15+(C26*C25+C27)*Q34)/P34 -> 2075.667721
B30: TCEA | C30: 0.2394108957
V31: =C15-V34-C14 -> -7.275957614e-12
B33: 2) Creación de Cronograma de prima mensual
P34: =SUM(P36:P395) -> 19.27090718 | Q34: =SUM(Q36:Q395) -> 19.27090718 | V34: =SUM(V36:V395) -> 40000
B35: N° Cuota | C35: Fecha de pago | D35: Día | E35: Fecha de pago | F35: Días | G35: Dias Acumulados | H35: Saldo Inicial | I35: Amortización | J35: Interés | K35: Seguro Desgravamen | L35: Seguro del Bien | M35: Portes | N35: Cuota Constante | O35: Saldo Final | P35: Factor Cronograma | Q35: Factor Cronograma 2 | S35: Vector i,1 Cuota | T35: Vector i,2 Días Acum | U35: Vector i,3 Factor | V35: Vector i,4 Calculo VA | W35: VPN - Valor Presente | X35: VPN - Valor Presente
B36: 1 | C36: =C20 -> 2022-08-19 | D36: =IF(B36<=$C$18,WEEKDAY(C36,2),"") -> 5 | E36: =IF(D36=7,C36+1,C36) -> 2022-08-19 | F36: =E36-C19 -> 31 | G36: =F36 -> 31 | H36: =C15 -> 40000 | I36: =IF(B36>C$18,"",N36-M36-L36-K36-J36) -> 1329.501022 | J36: =IF(B36>C$18,"",((1+C$23)^(F36/360)-1)*H36) -> 708.5941296 | K36: =IF(B36>C$18,"",((1+C$13)^(F36/30)-1)*H36) -> 37.57256905 | L36: =IF(B36>C$18,"",C$25*C$26) -> 0 | M36: =IF(B36>C$18,"",C$27) -> 0 | N36: =IF(B36>C$18,"",IF(B36=C$18,H36+J36+K36+L36+M36,IF(AND(C$21=2,MONTH(E36)=7),2*C$28,IF(AND(C$22=2,MONTH(E36)=12),2*C$28,C$28)))) -> 2075.667721 | O36: =IF(B36>C$18,"",H36-I36) -> 38670.49898 | P36: =IFERROR(IF(AND(MONTH(E36)=7,C$21=2),2/(1+C$24)^(G36/360),IF(AND(MONTH(E36)=12,C$22=2),2/(1+C$24)^(G36/360),1/(1+C$24)^(G36/360))),"") -> 0.9816869255 | Q36: =IFERROR(1/(1+C$24)^(G36/360),"") -> 0.9816869255 | S36: =IFERROR(I36+J36+K36+L36+M36,"") -> 2075.667721 | T36: =G36 -> 31 | U36: =IFERROR((1+C$30)^(T36/360),"") -> 1.01865442 | V36: =IFERROR(ROUND(S36/U36,2),"") -> 2037.66 | W36: =K36/(1+$H$9) -> 37.57256905 | X36: =K36/(1+$P$28) -> 37.57256905
B37: 2 | C37: =IF(B37>$C$18,"",EDATE(C36,1)) -> 2022-09-19 | D37: 1 | E37: =IF(D37=7,C37+1,C37) -> 2022-09-19 | F37: =IF(B37>C$18,"",E37-E36) -> 31 | G37: =IFERROR(F37+G36,"") -> 62 | H37: =IF(B37>C$18,"",O36) -> 38670.49898 | I37: 1354.301757 | J37: 685.0422141 | K37: 36.32374982 | L37: 0 | M37: 0 | N37: 2075.667721 | O37: 37316.19722 | P37: 0.9637092196 | Q37: 0.9637092196 | S37: 2075.667721 | T37: 62 | U37: 1.037656827 | V37: 2000.34 | W37: =IF(N37="",0,K37/((1+$H$9)^B37)) -> 36.32374982 | X37: =IF(N37="",0,K37/((1+$P$28)^B37)) -> 36.32374982
B38: 3 | C38: 2022-10-19 | D38: 3 | E38: 2022-10-19 | F38: 30 | G38: 92 | H38: 37316.19722 | I38: 1402.202246 | J38: 639.5450521 | K38: 33.92042327 | L38: 0 | M38: 0 | N38: 2075.667721 | O38: 35913.99497 | P38: 0.9466249698 | Q38: 0.9466249698 | S38: 2075.667721 | T38: 92 | U38: 1.056383697 | V38: 1964.88 | W38: 33.92042327 | X38: 33.92042327
B39: 4 | C39: 2022-11-19 | D39: 6 | E39: 2022-11-19 | F39: 31 | G39: 123 | H39: 35913.99497 | I39: 1405.722044 | J39: 636.2111502 | K39: 33.7345264 | L39: 0 | M39: 0 | N39: 2075.667721 | O39: 34508.27293 | P39: 0.9292893562 | Q39: 0.9292893562 | S39: 2075.667721 | T39: 123 | U39: 1.076089922 | V39: 1928.9 | W39: 33.7345264 | X39: 33.7345264
B40: 5 | C40: 2022-12-19 | D40: 1 | E40: 2022-12-19 | F40: 30 | G40: 153 | H40: 34508.27293 | I40: 1452.878365 | J40: 591.4213358 | K40: 31.36802009 | L40: 0 | M40: 0 | N40: 2075.667721 | O40: 33055.39456 | P40: 0.9128152879 | Q40: 0.9128152879 | S40: 2075.667721 | T40: 153 | U40: 1.095510405 | V40: 1894.7 | W40: 31.36802009 | X40: 31.36802009
B41: 6 | C41: 2023-01-19 | D41: 4 | E41: 2023-01-19 | F41: 31 | G41: 184 | H41: 33055.39456 | I41: 1459.046855 | J41: 585.5714635 | K41: 31.04940237 | L41: 0 | M41: 0 | N41: 2075.667721 | O41: 31596.34771 | P41: 0.8960988334 | Q41: 0.8960988334 | S41: 2075.667721 | T41: 184 | U41: 1.115946516 | V41: 1860.01 | W41: 31.04940237 | X41: 31.04940237
B42: 7 | C42: 2023-02-19 | D42: 7 | E42: 2023-02-20 | F42: 32 | G42: 216 | H42: 31596.34771 | I42: 1467.086527 | J42: 577.944447 | K42: 30.63674674 | L42: 0 | M42: 0 | N42: 2075.667721 | O42: 30129.26118 | P42: 0.8791641767 | Q42: 0.8791641767 | S42: 2075.667721 | T42: 216 | U42: 1.137441804 | V42: 1824.86 | W42: 30.63674674 | X42: 30.63674674
B43: 8 | C43: 2023-03-19 | D43: 7 | E43: 2023-03-20 | F43: 28 | G43: 244 | H43: 30129.26118 | I43: 1568.433783 | J43: 481.6730471 | K43: 25.56089092 | L43: 0 | M43: 0 | N43: 2075.667721 | O43: 28560.8274 | P43: 0.8646090883 | Q43: 0.8646090883 | S43: 2075.667721 | T43: 244 | U43: 1.156589554 | V43: 1794.65 | W43: 25.56089092 | X43: 25.56089092
B44: 9 | C44: 2023-04-19 | D44: 3 | E44: 2023-04-19 | F44: 30 | G44: 274 | H44: 28560.8274 | I44: 1560.215112 | J44: 489.4908165 | K44: 25.96179211 | L44: 0 | M44: 0 | N44: 2075.667721 | O44: 27000.61229 | P44: 0.8492816458 | Q44: 0.8492816458 | S44: 2075.667721 | T44: 274 | U44: 1.177462835 | V44: 1762.83 | W44: 25.96179211 | X44: 25.96179211
B45: 10 | C45: 2023-05-19 | D45: 5 | E45: 2023-05-19 | F45: 30 | G45: 304 | H45: 27000.61229 | I45: 1588.373153 | J45: 462.751011 | K45: 24.54355657 | L45: 0 | M45: 0 | N45: 2075.667721 | O45: 25412.23913 | P45: 0.834225922 | Q45: 0.834225922 | S45: 2075.667721 | T45: 304 | U45: 1.198712821 | V45: 1731.58 | W45: 24.54355657 | X45: 24.54355657
B46: 11 | C46: 2023-06-19 | D46: 1 | E46: 2023-06-19 | F46: 31 | G46: 335 | H46: 25412.23913 | I46: 1601.623557 | J46: 450.1740867 | K46: 23.87007774 | L46: 0 | M46: 0 | N46: 2075.667721 | O46: 23810.61558 | P46: 0.8189486805 | Q46: 0.8189486805 | S46: 2075.667721 | T46: 335 | U46: 1.221074113 | V46: 1699.87 | W46: 23.87007774 | X46: 23.87007774
B47: 12 | C47: 2023-07-19 | D47: 3 | E47: 2023-07-19 | F47: 30 | G47: 365 | H47: 23810.61558 | I47: 1645.944739 | J47: 408.0791322 | K47: 21.64384956 | L47: 0 | M47: 0 | N47: 2075.667721 | O47: 22164.67084 | P47: 0.8044306874 | Q47: 0.8044306874 | S47: 2075.667721 | T47: 365 | U47: 1.243111164 | V47: 1669.74 | W47: 21.64384956 | X47: 21.64384956
B48: 13 | C48: 2023-08-19 | D48: 6 | E48: 2023-08-19 | F48: 31 | G48: 396 | H48: 22164.67084 | I48: 1662.204239 | J48: 392.643891 | K48: 20.81959064 | L48: 0 | M48: 0 | N48: 2075.667721 | O48: 20502.4666 | P48: 0.7896990883 | Q48: 0.7896990883 | S48: =IFERROR(I48+J48+K48+L48+M48,"") -> 2075.667721 | T48: 396 | U48: 1.266300682 | V48: 1639.16 | W48: 20.81959064 | X48: 20.81959064
B49: 14 | C49: 2023-09-19 | D49: 2 | E49: 2023-09-19 | F49: 31 | G49: 427 | H49: 20502.4666 | I49: 1693.211276 | J49: 363.1981868 | K49: 19.25825855 | L49: 0 | M49: 0 | N49: 2075.667721 | O49: 18809.25532 | P49: 0.77523727 | Q49: 0.77523727 | S49: 2075.667721 | T49: 427 | U49: 1.289922786 | V49: 1609.14 | W49: 19.25825855 | X49: 19.25825855
B50: 15 | C50: 2023-10-19 | D50: 4 | E50: 2023-10-19 | F50: 30 | G50: 457 | H50: 18809.25532 | I50: 1736.206977 | J50: 322.3631311 | K50: 17.09761309 | L50: 0 | M50: 0 | N50: 2075.667721 | O50: 17073.04835 | P50: 0.7614941752 | Q50: 0.7614941752 | S50: 2075.667721 | T50: 457 | U50: 1.313202368 | V50: 1580.62 | W50: 17.09761309 | X50: 17.09761309
B51: 16 | C51: 2023-11-19 | D51: 7 | E51: 2023-11-20 | F51: 32 | G51: 489 | H51: 17073.04835 | I51: 1746.821608 | J51: 312.2915843 | K51: 16.55452912 | L51: 0 | M51: 0 | N51: 2075.667721 | O51: 15326.22674 | P51: 0.7471033045 | Q51: 0.7471033045 | S51: 2075.667721 | T51: 489 | U51: 1.338497186 | V51: 1550.74 | W51: 16.55452912 | X51: 16.55452912
B52: 17 | C52: 2023-12-19 | D52: 2 | E52: 2023-12-19 | F52: 29 | G52: 518 | H52: 15326.22674 | I52: 1808.359396 | J52: 253.8413733 | K52: 13.46695147 | L52: 0 | M52: 0 | N52: 2075.667721 | O52: 13517.86734 | P52: 0.7342966295 | Q52: 0.7342966295 | S52: 2075.667721 | T52: 518 | U52: 1.361841215 | V52: 1524.16 | W52: 13.46695147 | X52: 13.46695147
B53: 18 | C53: 2024-01-19 | D53: 5 | E53: 2024-01-19 | F53: 31 | G53: 549 | H53: 13517.86734 | I53: 1823.50316 | J53: 239.4670361 | K53: 12.6975251 | L53: 0 | M53: 0 | N53: 2075.667721 | O53: 11694.36418 | P53: 0.7208494006 | Q53: 0.7208494006 | S53: 2075.667721 | T53: 549 | U53: 1.387245572 | V53: 1496.25 | W53: 12.6975251 | X53: 12.6975251
B54: 19 | C54: 2024-02-19 | D54: 1 | E54: 2024-02-19 | F54: 31 | G54: 580 | H54: 11694.36418 | I54: 1857.519093 | J54: 207.1639452 | K54: 10.98468264 | L54: 0 | M54: 0 | N54: 2075.667721 | O54: 9836.845088 | P54: 0.7076484318 | Q54: 0.7076484318 | S54: 2075.667721 | T54: 580 | U54: 1.413123834 | V54: 1468.85 | W54: 10.98468264 | X54: 10.98468264
B55: 20 | C55: 2024-03-19 | D55: 2 | E55: 2024-03-19 | F55: 29 | G55: 609 | H55: 9836.845088 | I55: 1904.100993 | J55: 162.9232236 | K55: 8.643504869 | L55: 0 | M55: 0 | N55: 2075.667721 | O55: 7932.744095 | P55: 0.6955180832 | Q55: 0.6955180832 | S55: 2075.667721 | T55: 609 | U55: 1.437769387 | V55: 1443.67 | W55: 8.643504869 | X55: 8.643504869
B56: 21 | C56: 2024-04-19 | D56: 5 | E56: 2024-04-19 | F56: 31 | G56: 640 | H56: 7932.744095 | I56: 1927.688984 | J56: 140.5273974 | K56: 7.451339382 | L56: 0 | M56: 0 | N56: 2075.667721 | O56: 6005.055111 | P56: 0.6827810087 | Q56: 0.6827810087 | S56: 2075.667721 | T56: 640 | U56: 1.464590141 | V56: 1417.23 | W56: 7.451339382 | X56: 7.451339382
B57: 22 | C57: 2024-05-19 | D57: 7 | E57: 2024-05-20 | F57: 31 | G57: 671 | H57: 6005.055111 | I57: 1963.648417 | J57: 106.37867 | K57: 5.640633695 | L57: 0 | M57: 0 | N57: 2075.667721 | O57: 4041.406694 | P57: 0.6702771892 | Q57: 0.6702771892 | S57: 2075.667721 | T57: 671 | U57: 1.49191122 | V57: 1391.28 | W57: 5.640633695 | X57: 5.640633695
B58: 23 | C58: 2024-06-19 | D58: 3 | E58: 2024-06-19 | F58: 30 | G58: 701 | H58: 4041.406694 | I58: 2002.730282 | J58: 69.2638009 | K58: 3.673638685 | L58: 0 | M58: 0 | N58: 2075.667721 | O58: 2038.676412 | P58: 0.6583947845 | Q58: 0.6583947845 | S58: 2075.667721 | T58: 701 | U58: 1.518836141 | V58: 1366.62 | W58: 3.673638685 | X58: 3.673638685
B59: 24 | C59: 2024-07-19 | D59: 5 | E59: 2024-07-19 | F59: 30 | G59: 731 | H59: 2038.676412 | I59: 2038.676412 | J59: 34.93993251 | K59: 1.853156859 | L59: 0 | M59: 0 | N59: 2075.469502 | O59: 0 | P59: 0.6467230263 | Q59: 0.6467230263 | S59: 2075.469502 | T59: 731 | U59: 1.546246982 | V59: 1342.26 | W59: 1.853156859 | X59: 1.853156859
B60: 25 | W60: 0 | X60: 0
B61: 26 | W61: 0 | X61: 0
B62: 27 | W62: 0 | X62: 0
B63: 28 | W63: 0 | X63: 0
B64: 29 | W64: 0 | X64: 0
B65: 30 | W65: 0 | X65: 0
B66: 31 | W66: 0 | X66: 0
B67: 32 | W67: 0 | X67: 0
B68: 33 | W68: 0 | X68: 0
B69: 34 | W69: 0 | X69: 0
B70: 35 | W70: 0 | X70: 0
B71: 36 | W71: 0 | X71: 0
B72: 37 | W72: 0 | X72: 0
B73: 38 | W73: 0 | X73: 0
B74: 39 | W74: 0 | X74: 0
B75: 40 | W75: 0 | X75: 0
B76: 41 | W76: 0 | X76: 0
B77: 42 | W77: 0 | X77: 0
B78: 43 | W78: 0 | X78: 0
B79: 44 | W79: 0 | X79: 0
B80: 45 | W80: 0 | X80: 0
B81: 46 | W81: 0 | X81: 0
B82: 47 | W82: 0 | X82: 0
B83: 48 | W83: 0 | X83: 0
B84: 49 | W84: 0 | X84: 0
B85: 50 | W85: 0 | X85: 0
B86: 51 | W86: 0 | X86: 0
B87: 52 | W87: 0 | X87: 0
B88: 53 | W88: 0 | X88: 0
B89: 54 | W89: 0 | X89: 0
B90: 55 | W90: 0 | X90: 0
B91: 56 | W91: 0 | X91: 0
B92: 57 | W92: 0 | X92: 0
B93: 58 | W93: 0 | X93: 0
B94: 59 | W94: 0 | X94: 0
B95: 60 | W95: 0 | X95: 0
B96: 61 | W96: 0 | X96: 0
B97: 62 | W97: 0 | X97: 0
B98: 63 | W98: 0 | X98: 0
B99: 64 | W99: 0 | X99: 0
B100: 65 | D100: =IF(B100<=$C$18,WEEKDAY(C100,2),"") ->  | I100: =IF(B100>C$18,"",N100-M100-L100-K100-J100) ->  | J100: =IF(B100>C$18,"",((1+C$23)^(F100/360)-1)*H100) ->  | K100: =IF(B100>C$18,"",((1+C$13)^(F100/30)-1)*H100) ->  | L100: =IF(B100>C$18,"",C$25*C$26) ->  | M100: =IF(B100>C$18,"",C$27) ->  | N100: =IF(B100>C$18,"",IF(B100=C$18,H100+J100+K100+L100+M100,IF(AND(C$21=2,MONTH(E100)=7),2*C$28,IF(AND(C$22=2,MONTH(E100)=12),2*C$28,C$28)))) ->  | O100: =IF(B100>C$18,"",H100-I100) ->  | P100: =IFERROR(IF(AND(MONTH(E100)=7,C$21=2),2/(1+C$24)^(G100/360),IF(AND(MONTH(E100)=12,C$22=2),2/(1+C$24)^(G100/360),1/(1+C$24)^(G100/360))),"") ->  | Q100: =IFERROR(1/(1+C$24)^(G100/360),"") ->  | T100: =G100 ->  | U100: =IFERROR((1+C$30)^(T100/360),"") ->  | V100: =IFERROR(ROUND(S100/U100,2),"") ->  | W100: 0 | X100: 0
B101: 66 | C101: =IF(B101>$C$18,"",EDATE(C100,1)) ->  | E101: =IF(D101=7,C101+1,C101) ->  | F101: =IF(B101>C$18,"",E101-E100) ->  | G101: =IFERROR(F101+G100,"") ->  | H101: =IF(B101>C$18,"",O100) ->  | S101: =IFERROR(I101+J101+K101+L101+M101,"") ->  | W101: =IF(N101="",0,K101/((1+$H$9)^B101)) -> 0 | X101: =IF(N101="",0,K101/((1+$P$28)^B101)) -> 0
B102: 67 | W102: 0 | X102: 0
B103: 68 | W103: 0 | X103: 0
B104: 69 | W104: 0 | X104: 0
B105: 70 | W105: 0 | X105: 0
B106: 71 | W106: 0 | X106: 0
B107: 72 | W107: 0 | X107: 0
B108: 73 | W108: 0 | X108: 0
B109: 74 | W109: 0 | X109: 0
B110: 75 | W110: 0 | X110: 0
B111: 76 | W111: 0 | X111: 0
B112: 77 | W112: 0 | X112: 0
B113: 78 | W113: 0 | X113: 0
B114: 79 | W114: 0 | X114: 0
B115: 80 | W115: 0 | X115: 0
B116: 81 | W116: 0 | X116: 0
B117: 82 | W117: 0 | X117: 0
B118: 83 | W118: 0 | X118: 0
B119: 84 | W119: 0 | X119: 0
B120: 85 | W120: 0 | X120: 0
B121: 86 | W121: 0 | X121: 0
B122: 87 | W122: 0 | X122: 0
B123: 88 | W123: 0 | X123: 0
B124: 89 | W124: 0 | X124: 0
B125: 90 | W125: 0 | X125: 0
B126: 91 | W126: 0 | X126: 0
B127: 92 | W127: 0 | X127: 0
B128: 93 | W128: 0 | X128: 0
B129: 94 | W129: 0 | X129: 0
B130: 95 | W130: 0 | X130: 0
B131: 96 | W131: 0 | X131: 0
B132: 97 | W132: 0 | X132: 0
B133: 98 | W133: 0 | X133: 0
B134: 99 | W134: 0 | X134: 0
B135: 100 | W135: 0 | X135: 0
B136: 101 | W136: 0 | X136: 0
B137: 102 | W137: 0 | X137: 0
B138: 103 | W138: 0 | X138: 0
B139: 104 | W139: 0 | X139: 0
B140: 105 | W140: 0 | X140: 0
B141: 106 | W141: 0 | X141: 0
B142: 107 | W142: 0 | X142: 0
B143: 108 | W143: 0 | X143: 0
B144: 109 | W144: 0 | X144: 0
B145: 110 | W145: 0 | X145: 0
B146: 111 | W146: 0 | X146: 0
B147: 112 | W147: 0 | X147: 0
B148: 113 | W148: 0 | X148: 0
B149: 114 | W149: 0 | X149: 0
B150: 115 | W150: 0 | X150: 0
B151: 116 | W151: 0 | X151: 0
B152: 117 | W152: 0 | X152: 0
B153: 118 | W153: 0 | X153: 0
B154: 119 | W154: 0 | X154: 0
B155: 120 | W155: 0 | X155: 0
B156: 121 | W156: 0 | X156: 0
B157: 122 | W157: 0 | X157: 0
B158: 123 | W158: 0 | X158: 0
B159: 124 | W159: 0 | X159: 0
B160: 125 | W160: 0 | X160: 0
B161: 126 | W161: 0 | X161: 0
B162: 127 | W162: 0 | X162: 0
B163: 128 | W163: 0 | X163: 0
B164: 129 | D164: =IF(B164<=$C$18,WEEKDAY(C164,2),"") ->  | I164: =IF(B164>C$18,"",N164-M164-L164-K164-J164) ->  | J164: =IF(B164>C$18,"",((1+C$23)^(F164/360)-1)*H164) ->  | K164: =IF(B164>C$18,"",((1+C$13)^(F164/30)-1)*H164) ->  | L164: =IF(B164>C$18,"",C$25*C$26) ->  | M164: =IF(B164>C$18,"",C$27) ->  | N164: =IF(B164>C$18,"",IF(B164=C$18,H164+J164+K164+L164+M164,IF(AND(C$21=2,MONTH(E164)=7),2*C$28,IF(AND(C$22=2,MONTH(E164)=12),2*C$28,C$28)))) ->  | O164: =IF(B164>C$18,"",H164-I164) ->  | P164: =IFERROR(IF(AND(MONTH(E164)=7,C$21=2),2/(1+C$24)^(G164/360),IF(AND(MONTH(E164)=12,C$22=2),2/(1+C$24)^(G164/360),1/(1+C$24)^(G164/360))),"") ->  | Q164: =IFERROR(1/(1+C$24)^(G164/360),"") ->  | T164: =G164 ->  | U164: =IFERROR((1+C$30)^(T164/360),"") ->  | V164: =IFERROR(ROUND(S164/U164,2),"") ->  | W164: 0 | X164: 0
B165: 130 | C165: =IF(B165>$C$18,"",EDATE(C164,1)) ->  | E165: =IF(D165=7,C165+1,C165) ->  | F165: =IF(B165>C$18,"",E165-E164) ->  | G165: =IFERROR(F165+G164,"") ->  | H165: =IF(B165>C$18,"",O164) ->  | S165: =IFERROR(I165+J165+K165+L165+M165,"") ->  | W165: =IF(N165="",0,K165/((1+$H$9)^B165)) -> 0 | X165: =IF(N165="",0,K165/((1+$P$28)^B165)) -> 0
B166: 131 | W166: 0 | X166: 0
B167: 132 | W167: 0 | X167: 0
B168: 133 | W168: 0 | X168: 0
B169: 134 | W169: 0 | X169: 0
B170: 135 | W170: 0 | X170: 0
B171: 136 | W171: 0 | X171: 0
B172: 137 | W172: 0 | X172: 0
B173: 138 | W173: 0 | X173: 0
B174: 139 | W174: 0 | X174: 0
B175: 140 | W175: 0 | X175: 0
B176: 141 | W176: 0 | X176: 0
B177: 142 | W177: 0 | X177: 0
B178: 143 | W178: 0 | X178: 0
B179: 144 | W179: 0 | X179: 0
B180: 145 | W180: 0 | X180: 0
B181: 146 | W181: 0 | X181: 0
B182: 147 | W182: 0 | X182: 0
B183: 148 | W183: 0 | X183: 0
B184: 149 | W184: 0 | X184: 0
B185: 150 | W185: 0 | X185: 0
B186: 151 | W186: 0 | X186: 0
B187: 152 | W187: 0 | X187: 0
B188: 153 | W188: 0 | X188: 0
B189: 154 | W189: 0 | X189: 0
B190: 155 | W190: 0 | X190: 0
B191: 156 | W191: 0 | X191: 0
B192: 157 | W192: 0 | X192: 0
B193: 158 | W193: 0 | X193: 0
B194: 159 | W194: 0 | X194: 0
B195: 160 | W195: 0 | X195: 0
B196: 161 | W196: 0 | X196: 0
B197: 162 | W197: 0 | X197: 0
B198: 163 | W198: 0 | X198: 0
B199: 164 | W199: 0 | X199: 0
B200: 165 | W200: 0 | X200: 0
B201: 166 | W201: 0 | X201: 0
B202: 167 | W202: 0 | X202: 0
B203: 168 | W203: 0 | X203: 0
B204: 169 | W204: 0 | X204: 0
B205: 170 | W205: 0 | X205: 0
B206: 171 | W206: 0 | X206: 0
B207: 172 | W207: 0 | X207: 0
B208: 173 | W208: 0 | X208: 0
... 187 more rows

Sheet TarifarioBD (hidden)
A1: TARIFA | B1: PRODUCTO | C1: TIPO_SEGURO | D1: Valor | E1: Columna1 | F1: Columna2 | H1: TARIFA | I1: PRODUCTO | J1: TIPO_SEGURO
A2: TARIFA TITULAR | B2: Persona Natural | C2: Seguro de Vida | D2: 0.000975 | E2: TARIFA TITULARPersona NaturalSeguro de Vida | F2: 0.000975 | H2: TARIFA TITULAR | I2: Persona Juridica
A3: TARIFA TITULAR | B3: Persona Natural | C3: Seguro de Desgravamen | D3: 0.002 | E3: TARIFA TITULARPersona NaturalSeguro de Desgravamen | F3: 0.002 | J3: Seguro de Desgravamen
A4: TARIFA TITULAR | B4: Persona Natural | C4: Seguro de Desgravamen con Devolución | D4: 0.0026 | E4: TARIFA TITULARPersona NaturalSeguro de Desgravamen con Devolución | F4: 0.0026 | J4: Seguro de Desgravamen con Devolución
A5: TARIFA TITULAR + CONYUGE | B5: Persona Natural | C5: Seguro de Vida | D5: 0.00195 | E5: TARIFA TITULAR + CONYUGEPersona NaturalSeguro de Vida | F5: 0.00195
A6: TARIFA TITULAR + CONYUGE | B6: Persona Natural | C6: Seguro de Desgravamen | D6: 0.004 | E6: TARIFA TITULAR + CONYUGEPersona NaturalSeguro de Desgravamen | F6: 0.004
A7: TARIFA TITULAR + CONYUGE | B7: Persona Natural | C7: Seguro de Desgravamen con Devolución | D7: 0.0052 | E7: TARIFA TITULAR + CONYUGEPersona NaturalSeguro de Desgravamen con Devolución | F7: 0.0052
A8: TARIFA TITULAR | B8: Persona Jurídica | C8: Seguro de Desgravamen | D8: 0.000909 | E8: TARIFA TITULARPersona JurídicaSeguro de Desgravamen | F8: 0.000909
A9: TARIFA TITULAR | B9: Persona Jurídica | C9: Seguro de Desgravamen con Devolución | D9: 0.0018 | E9: TARIFA TITULARPersona JurídicaSeguro de Desgravamen con Devolución | F9: 0.0018
A10: TARIFA TITULAR + CONYUGE | B10: Persona Jurídica | C10: Seguro de Desgravamen | D10: 0.001591 | E10: TARIFA TITULAR + CONYUGEPersona JurídicaSeguro de Desgravamen | F10: 0.001591
A11: TARIFA TITULAR + CONYUGE | B11: Persona Jurídica | C11: Seguro de Desgravamen con Devolución | D11: 0.00315 | E11: TARIFA TITULAR + CONYUGEPersona JurídicaSeguro de Desgravamen con Devolución | F11: 0.00315

Sheet CostoCapBD (hidden)
A1: TARIFA | B1: CostoCapital
A2: TARIFA TITULAR | B2: 0
A3: TARIFA TITULAR + CONYUGE | B3: 0
